[Event "Titled Tuesday Blitz July 6 2021"]
[White "Kokoszczynski, Jan"]
[Black "Pourkashiyan, Atousa"]
[WhiteFideId "1174460"]
[BlackFideId "12502014"]
[WhiteElo "2166"]
[BlackElo "2285"]
[Result "1-0"]
[Round "09"]
[TimeControl "180+1"]
[Date "2021.07.06"]
[WhiteClock "0:00:03"]
[BlackClock "0:00:12"]

1. e4 {[%clk 0:03:00]}  c5 {[%clk 0:02:42]} 2. Nf3 {[%clk 0:02:59]}  e6 {[%clk 0:02:42]} 3. d4 {[%clk 0:02:59]}  cxd4 {[%clk 0:02:43]} 4. Nxd4 {[%clk 0:03:00]}  a6 {[%clk 0:02:44]} 5. c4 {[%clk 0:02:56]}  Nf6 {[%clk 0:02:43]} 6. Nc3 {[%clk 0:02:56]}  Qc7 {[%clk 0:02:43]} 7. a3 {[%clk 0:02:57]}  b6 {[%clk 0:02:43]} 8. Be3 {[%clk 0:02:56]}  Bb7 {[%clk 0:02:44]} 9. f3 {[%clk 0:02:56]}  Nc6 {[%clk 0:02:42]} 10. Rc1 {[%clk 0:02:56]}  Nxd4 {[%clk 0:02:41]} 11. Bxd4 {[%clk 0:02:55]}  Bd6 {[%clk 0:02:41]} 12. g3 {[%clk 0:02:44]}  Bc5 {[%clk 0:02:41]} 13. b4 {[%clk 0:02:32]}  Bxd4 {[%clk 0:02:22]} 14. Qxd4 {[%clk 0:02:33]}  d6 {[%clk 0:02:22]} 15. Bg2 {[%clk 0:02:16]}  O-O {[%clk 0:02:22]} 16. O-O {[%clk 0:02:16]}  Rac8 {[%clk 0:02:17]} 17. Rfd1 {[%clk 0:02:12]}  Rfd8 {[%clk 0:02:14]} 18. Bf1 {[%clk 0:02:05]}  Nd7 {[%clk 0:02:12]} 19. f4 {[%clk 0:01:52]}  Nf6 {[%clk 0:02:06]} 20. Bd3 {[%clk 0:01:42]}  h6 {[%clk 0:02:05]} 21. Qf2 {[%clk 0:01:39]}  e5 {[%clk 0:02:00]} 22. Rc2 {[%clk 0:01:11]}  exf4 {[%clk 0:01:56]} 23. gxf4 {[%clk 0:01:09]}  Re8 {[%clk 0:01:55]} 24. Nd5 {[%clk 0:01:09]}  Bxd5 {[%clk 0:01:54]} 25. cxd5 {[%clk 0:01:08]}  Qb7 {[%clk 0:01:54]} 26. Qd4 {[%clk 0:00:59]}  Qd7 {[%clk 0:01:48]} 27. Rg2 {[%clk 0:00:57]}  Nh5 {[%clk 0:01:41]} 28. Bxa6 {[%clk 0:00:45]}  g6 {[%clk 0:01:13]} 29. Bxc8 {[%clk 0:00:40]}  Qxc8 {[%clk 0:01:14]} 30. e5 {[%clk 0:00:31]}  Kh7 {[%clk 0:00:56]} 31. e6 {[%clk 0:00:23]}  fxe6 {[%clk 0:00:53]} 32. Qe4 {[%clk 0:00:17]}  Rg8 {[%clk 0:00:47]} 33. dxe6 {[%clk 0:00:17]}  Nf6 {[%clk 0:00:27]} 34. Qd4 {[%clk 0:00:18]}  Qxe6 {[%clk 0:00:26]} 35. Qxd6 {[%clk 0:00:18]}  Qe3+ {[%clk 0:00:26]} 36. Kh1 {[%clk 0:00:18]}  Ne4 {[%clk 0:00:26]} 37. Qd4 {[%clk 0:00:11]}  Qf3 {[%clk 0:00:18]} 38. Qg1 {[%clk 0:00:05]}  Rg7 {[%clk 0:00:17]} 39. Rf1 {[%clk 0:00:05]}  Qd3 {[%clk 0:00:16]} 40. f5 {[%clk 0:00:05]}  g5 {[%clk 0:00:15]} 41. f6 {[%clk 0:00:06]}  Rf7 {[%clk 0:00:15]} 42. Qxb6 {[%clk 0:00:05]}  Qd5 {[%clk 0:00:14]} 43. Qe3 {[%clk 0:00:03]}  Nd6 {[%clk 0:00:13]} 44. Re1 {[%clk 0:00:03]}  Nf5 {[%clk 0:00:13]} 45. Qe4 {[%clk 0:00:04]}  Qxe4 {[%clk 0:00:13]} 46. Rxe4 {[%clk 0:00:05]}  Rxf6 {[%clk 0:00:13]} 47. Re1 {[%clk 0:00:05]}  Nh4 {[%clk 0:00:14]} 48. Rge2 {[%clk 0:00:05]}  Nf3 {[%clk 0:00:13]} 49. Ra1 {[%clk 0:00:05]}  Kg6 {[%clk 0:00:13]} 50. a4 {[%clk 0:00:05]}  Nd4 {[%clk 0:00:14]} 51. Rb2 {[%clk 0:00:05]}  Rb6 {[%clk 0:00:09]} 52. b5 {[%clk 0:00:04]}  g4 {[%clk 0:00:08]} 53. a5 {[%clk 0:00:04]}  Rxb5 {[%clk 0:00:08]} 54. Rxb5 {[%clk 0:00:04]}  Nxb5 {[%clk 0:00:08]} 55. a6 {[%clk 0:00:05]}  Na7 {[%clk 0:00:09]} 56. Rb1 {[%clk 0:00:05]}  h5 {[%clk 0:00:10]} 57. Rb7 {[%clk 0:00:06]}  Nc6 {[%clk 0:00:10]} 58. Rc7 {[%clk 0:00:05]}  Nd4 {[%clk 0:00:10]} 59. a7 {[%clk 0:00:05]}  Kg5 {[%clk 0:00:10]} 60. a8=Q {[%clk 0:00:05]}  Kh4 {[%clk 0:00:11]} 61. Qa3 {[%clk 0:00:04]}  Nf3 {[%clk 0:00:11]} 62. Rc3 {[%clk 0:00:03]}  Kh3 {[%clk 0:00:12]} 63. Rxf3+ {[%clk 0:00:03]}  Kh4 {[%clk 0:00:13]} 64. Rh3+ {[%clk 0:00:03]}  gxh3 {[%clk 0:00:12]} 65. Qg3# {[%clk 0:00:03]} 1-0


[Site "https://www.chess.com"]

[Event "Titled Tuesday Blitz July 6 2021"]
[White "Kotsur, Pavel"]
[Black "Gabrielian, Artur"]
[WhiteFideId "13700278"]
[BlackFideId "4131002"]
[WhiteElo "2521"]
[BlackElo "2523"]
[Result "0-1"]
[Round "09"]
[TimeControl "180+1"]
[Date "2021.07.06"]
[WhiteClock "0:00:14"]
[BlackClock "0:00:19"]

1. e4 {[%clk 0:03:00]}  c5 {[%clk 0:02:56]} 2. Nf3 {[%clk 0:03:00]}  Nc6 {[%clk 0:02:55]} 3. d4 {[%clk 0:03:00]}  cxd4 {[%clk 0:02:55]} 4. Nxd4 {[%clk 0:03:01]}  Nf6 {[%clk 0:02:56]} 5. Nc3 {[%clk 0:03:00]}  d6 {[%clk 0:02:56]} 6. Bg5 {[%clk 0:03:00]}  Bd7 {[%clk 0:02:56]} 7. Qd2 {[%clk 0:02:58]}  a6 {[%clk 0:02:57]} 8. f3 {[%clk 0:02:55]}  e6 {[%clk 0:02:55]} 9. O-O-O {[%clk 0:02:54]}  Nxd4 {[%clk 0:02:56]} 10. Qxd4 {[%clk 0:02:54]}  h6 {[%clk 0:02:56]} 11. Be3 {[%clk 0:02:53]}  Bc6 {[%clk 0:02:56]} 12. Kb1 {[%clk 0:02:44]}  d5 {[%clk 0:02:56]} 13. exd5 {[%clk 0:02:41]}  Nxd5 {[%clk 0:02:56]} 14. Nxd5 {[%clk 0:02:41]}  Qxd5 {[%clk 0:02:56]} 15. Bc4 {[%clk 0:02:32]}  Qxd4 {[%clk 0:02:56]} 16. Bxd4 {[%clk 0:02:33]}  h5 {[%clk 0:02:57]} 17. h4 {[%clk 0:02:30]}  Be7 {[%clk 0:02:55]} 18. Be3 {[%clk 0:02:05]}  Rc8 {[%clk 0:02:49]} 19. Bd3 {[%clk 0:02:03]}  Rd8 {[%clk 0:02:44]} 20. Kc1 {[%clk 0:02:00]}  Rg8 {[%clk 0:02:39]} 21. Bg5 {[%clk 0:01:59]}  Bxg5+ {[%clk 0:02:31]} 22. hxg5 {[%clk 0:01:58]}  g6 {[%clk 0:02:32]} 23. Rh4 {[%clk 0:01:56]}  Ke7 {[%clk 0:02:23]} 24. Rb4 {[%clk 0:01:49]}  Rd5 {[%clk 0:02:07]} 25. Be4 {[%clk 0:01:46]}  Rxg5 {[%clk 0:01:58]} 26. Bxc6 {[%clk 0:01:38]}  bxc6 {[%clk 0:01:58]} 27. Rd2 {[%clk 0:01:35]}  Rd8 {[%clk 0:01:48]} 28. Rb7+ {[%clk 0:01:26]}  Ke8 {[%clk 0:01:47]} 29. Re2 {[%clk 0:01:22]}  a5 {[%clk 0:01:15]} 30. Rc7 {[%clk 0:01:17]}  Rd6 {[%clk 0:01:14]} 31. b3 {[%clk 0:01:16]}  Rc5 {[%clk 0:00:53]} 32. Kb2 {[%clk 0:01:13]}  Rd7 {[%clk 0:00:52]} 33. Rc8+ {[%clk 0:01:13]}  Rd8 {[%clk 0:00:52]} 34. Rc7 {[%clk 0:01:13]}  Rd7 {[%clk 0:00:53]} 35. Rc8+ {[%clk 0:01:13]}  Ke7 {[%clk 0:00:54]} 36. a4 {[%clk 0:01:09]}  h4 {[%clk 0:00:53]} 37. c3 {[%clk 0:00:53]}  Rcd5 {[%clk 0:00:52]} 38. Kc2 {[%clk 0:00:50]}  Rc5 {[%clk 0:00:47]} 39. Kb2 {[%clk 0:00:49]}  g5 {[%clk 0:00:47]} 40. b4 {[%clk 0:00:48]}  Rcd5 {[%clk 0:00:46]} 41. Rc2 {[%clk 0:00:31]}  Rb7 {[%clk 0:00:39]} 42. Kb3 {[%clk 0:00:30]}  Kd7 {[%clk 0:00:38]} 43. Rf8 {[%clk 0:00:29]}  Rf5 {[%clk 0:00:30]} 44. Rd2+ {[%clk 0:00:28]}  Ke7 {[%clk 0:00:30]} 45. Rc8 {[%clk 0:00:28]}  Rd5 {[%clk 0:00:27]} 46. Rxd5 {[%clk 0:00:19]}  cxd5 {[%clk 0:00:25]} 47. Rc5 {[%clk 0:00:19]}  f5 {[%clk 0:00:23]} 48. Rxa5 {[%clk 0:00:19]}  g4 {[%clk 0:00:23]} 49. fxg4 {[%clk 0:00:19]}  fxg4 {[%clk 0:00:23]} 50. Ra8 {[%clk 0:00:19]}  Kf6 {[%clk 0:00:24]} 51. Rh8 {[%clk 0:00:19]}  h3 {[%clk 0:00:23]} 52. g3 {[%clk 0:00:16]}  Kg6 {[%clk 0:00:19]} 53. a5 {[%clk 0:00:16]}  Rh7 {[%clk 0:00:19]} 54. Rxh7 {[%clk 0:00:14]}  Kxh7 {[%clk 0:00:19]} 55. a6 {[%clk 0:00:15]}  h2 {[%clk 0:00:19]} 56. a7 {[%clk 0:00:16]}  h1=Q {[%clk 0:00:19]} 57. a8=Q {[%clk 0:00:14]}  Qb1+ {[%clk 0:00:19]} 0-1


[Site "https://www.chess.com"]

[Event "Titled Tuesday Blitz July 6 2021"]
[White "Krivonosov, Oleg"]
[Black "Kotepalli, Sai Nirupama"]
[WhiteFideId "11600349"]
[BlackFideId "5039444"]
[WhiteElo "2469"]
[BlackElo "2443"]
[Result "1-0"]
[Round "09"]
[TimeControl "180+1"]
[Date "2021.07.06"]
[WhiteClock "0:00:46"]
[BlackClock "0:00:01"]

1. Nf3 {[%clk 0:03:00]}  Nc6 {[%clk 0:02:58]} 2. d4 {[%clk 0:03:00]}  d5 {[%clk 0:02:57]} 3. Bf4 {[%clk 0:02:59]}  Nf6 {[%clk 0:02:53]} 4. e3 {[%clk 0:02:58]}  Bf5 {[%clk 0:02:53]} 5. c4 {[%clk 0:02:58]}  e6 {[%clk 0:02:53]} 6. Nc3 {[%clk 0:02:55]}  Bd6 {[%clk 0:02:52]} 7. Bg3 {[%clk 0:02:53]}  dxc4 {[%clk 0:02:48]} 8. Bxc4 {[%clk 0:02:52]}  O-O {[%clk 0:02:48]} 9. O-O {[%clk 0:02:49]}  Bxg3 {[%clk 0:02:42]} 10. hxg3 {[%clk 0:02:48]}  Ne7 {[%clk 0:02:37]} 11. Rc1 {[%clk 0:02:45]}  Ne4 {[%clk 0:02:30]} 12. Nxe4 {[%clk 0:02:44]}  Bxe4 {[%clk 0:02:31]} 13. Bd3 {[%clk 0:02:43]}  Bxd3 {[%clk 0:02:26]} 14. Qxd3 {[%clk 0:02:44]}  c6 {[%clk 0:02:24]} 15. Qc2 {[%clk 0:02:36]}  Qd6 {[%clk 0:02:16]} 16. Qc5 {[%clk 0:02:35]}  Rfd8 {[%clk 0:02:12]} 17. a3 {[%clk 0:02:31]}  Qxc5 {[%clk 0:02:08]} 18. Rxc5 {[%clk 0:02:30]}  Rd5 {[%clk 0:02:08]} 19. Rfc1 {[%clk 0:02:30]}  Rad8 {[%clk 0:02:07]} 20. Kf1 {[%clk 0:02:29]}  Nf5 {[%clk 0:02:02]} 21. g4 {[%clk 0:02:20]}  Nd6 {[%clk 0:01:58]} 22. Ke2 {[%clk 0:02:17]}  Ne4 {[%clk 0:01:55]} 23. R5c2 {[%clk 0:02:15]}  h6 {[%clk 0:01:49]} 24. b4 {[%clk 0:01:59]}  Nf6 {[%clk 0:01:43]} 25. Ne5 {[%clk 0:01:57]}  Nd7 {[%clk 0:01:40]} 26. Nxd7 {[%clk 0:01:56]}  R8xd7 {[%clk 0:01:41]} 27. Rc5 {[%clk 0:01:54]}  Kf8 {[%clk 0:01:38]} 28. a4 {[%clk 0:01:53]}  Ke7 {[%clk 0:01:36]} 29. a5 {[%clk 0:01:52]}  a6 {[%clk 0:01:36]} 30. f3 {[%clk 0:01:51]}  Kf6 {[%clk 0:01:24]} 31. f4 {[%clk 0:01:49]}  Kg6 {[%clk 0:01:19]} 32. g3 {[%clk 0:01:48]}  R7d6 {[%clk 0:01:09]} 33. Kf3 {[%clk 0:01:47]}  Rd7 {[%clk 0:01:05]} 34. R1c2 {[%clk 0:01:39]}  R7d6 {[%clk 0:01:04]} 35. Ke4 {[%clk 0:01:36]}  f5+ {[%clk 0:00:53]} 36. Kf3 {[%clk 0:01:30]}  Rd7 {[%clk 0:00:48]} 37. Rh2 {[%clk 0:01:28]}  R7d6 {[%clk 0:00:44]} 38. Rh1 {[%clk 0:01:27]}  Rd7 {[%clk 0:00:43]} 39. gxf5+ {[%clk 0:01:24]}  exf5 {[%clk 0:00:42]} 40. g4 {[%clk 0:01:16]}  fxg4+ {[%clk 0:00:40]} 41. Kxg4 {[%clk 0:01:17]}  Kf6 {[%clk 0:00:31]} 42. Kf3 {[%clk 0:01:16]}  Rxc5 {[%clk 0:00:29]} 43. bxc5 {[%clk 0:01:15]}  Rd5 {[%clk 0:00:27]} 44. Rb1 {[%clk 0:01:12]}  Rd7 {[%clk 0:00:26]} 45. Rh1 {[%clk 0:01:10]}  Re7 {[%clk 0:00:24]} 46. e4 {[%clk 0:01:09]}  Rd7 {[%clk 0:00:24]} 47. Ke3 {[%clk 0:01:09]}  Kf7 {[%clk 0:00:22]} 48. f5 {[%clk 0:01:07]}  Kf6 {[%clk 0:00:22]} 49. Rh5 {[%clk 0:01:05]}  Re7 {[%clk 0:00:14]} 50. e5+ {[%clk 0:01:05]}  Kf7 {[%clk 0:00:15]} 51. Ke4 {[%clk 0:01:05]}  Kf8 {[%clk 0:00:12]} 52. e6 {[%clk 0:01:02]}  Kg8 {[%clk 0:00:10]} 53. Ke5 {[%clk 0:01:01]}  Kf8 {[%clk 0:00:09]} 54. Rh2 {[%clk 0:00:53]}  Re8 {[%clk 0:00:07]} 55. Rb2 {[%clk 0:00:52]}  Re7 {[%clk 0:00:07]} 56. Kd6 {[%clk 0:00:50]}  Ke8 {[%clk 0:00:04]} 57. Rh2 {[%clk 0:00:48]}  Kf8 {[%clk 0:00:04]} 58. f6 {[%clk 0:00:47]}  gxf6 {[%clk 0:00:03]} 59. Rxh6 {[%clk 0:00:47]}  Rg7 {[%clk 0:00:01]} 60. Rxf6+ {[%clk 0:00:46]} 1-0


[Site "https://www.chess.com"]

[Event "Titled Tuesday Blitz July 6 2021"]
[White "Leiva, Gianmarco"]
[Black "Dobrov, Vladimir"]
[WhiteFideId "3804399"]
[BlackFideId "4136594"]
[WhiteElo "2365"]
[BlackElo "2614"]
[Result "0-1"]
[Round "09"]
[TimeControl "180+1"]
[Date "2021.07.06"]
[WhiteClock "0:00:03"]
[BlackClock "0:00:26"]

1. e4 {[%clk 0:02:56]}  c5 {[%clk 0:03:00]} 2. Nf3 {[%clk 0:02:56]}  Nc6 {[%clk 0:02:58]} 3. Bb5 {[%clk 0:02:55]}  e6 {[%clk 0:02:57]} 4. Bxc6 {[%clk 0:02:55]}  bxc6 {[%clk 0:02:58]} 5. d3 {[%clk 0:02:48]}  Ne7 {[%clk 0:02:57]} 6. O-O {[%clk 0:02:47]}  f6 {[%clk 0:02:57]} 7. Re1 {[%clk 0:02:36]}  e5 {[%clk 0:02:54]} 8. Be3 {[%clk 0:02:31]}  Ng6 {[%clk 0:02:51]} 9. h4 {[%clk 0:02:28]}  h5 {[%clk 0:02:44]} 10. c4 {[%clk 0:02:15]}  d6 {[%clk 0:02:42]} 11. Nbd2 {[%clk 0:02:13]}  Be7 {[%clk 0:02:39]} 12. g3 {[%clk 0:02:10]}  Rb8 {[%clk 0:02:32]} 13. Rb1 {[%clk 0:02:09]}  a5 {[%clk 0:02:30]} 14. a3 {[%clk 0:02:05]}  d5 {[%clk 0:02:27]} 15. cxd5 {[%clk 0:01:50]}  cxd5 {[%clk 0:02:28]} 16. exd5 {[%clk 0:01:46]}  Qxd5 {[%clk 0:02:29]} 17. Qa4+ {[%clk 0:01:31]}  Bd7 {[%clk 0:02:21]} 18. Qe4 {[%clk 0:01:27]}  Qf7 {[%clk 0:02:10]} 19. Rec1 {[%clk 0:01:10]}  Rc8 {[%clk 0:02:05]} 20. b4 {[%clk 0:00:54]}  Bc6 {[%clk 0:02:01]} 21. Qf5 {[%clk 0:00:53]}  Bd7 {[%clk 0:02:00]} 22. Qe4 {[%clk 0:00:54]}  axb4 {[%clk 0:01:58]} 23. axb4 {[%clk 0:00:54]}  cxb4 {[%clk 0:01:50]} 24. Rxc8+ {[%clk 0:00:48]}  Bxc8 {[%clk 0:01:51]} 25. Qc6+ {[%clk 0:00:47]}  Bd7 {[%clk 0:01:52]} 26. Qa8+ {[%clk 0:00:46]}  Bd8 {[%clk 0:01:51]} 27. Bc5 {[%clk 0:00:30]}  Ne7 {[%clk 0:01:36]} 28. Rxb4 {[%clk 0:00:25]}  O-O {[%clk 0:01:28]} 29. Rb8 {[%clk 0:00:25]}  Nc6 {[%clk 0:01:21]} 30. Bxf8 {[%clk 0:00:24]}  Nxb8 {[%clk 0:01:19]} 31. Bxg7 {[%clk 0:00:20]}  Nc6 {[%clk 0:01:07]} 32. Bh6 {[%clk 0:00:17]}  Kh7 {[%clk 0:01:08]} 33. Be3 {[%clk 0:00:17]}  Qd5 {[%clk 0:01:05]} 34. Qb7 {[%clk 0:00:15]}  Kg6 {[%clk 0:01:00]} 35. Qb1 {[%clk 0:00:08]}  Bg4 {[%clk 0:00:56]} 36. Ne1 {[%clk 0:00:06]}  Bf5 {[%clk 0:00:52]} 37. Ne4 {[%clk 0:00:06]}  Ba5 {[%clk 0:00:51]} 38. Nf3 {[%clk 0:00:06]}  Nb4 {[%clk 0:00:48]} 39. Bd2 {[%clk 0:00:03]}  Nxd3 {[%clk 0:00:45]} 40. Bxa5 {[%clk 0:00:02]}  Bxe4 {[%clk 0:00:46]} 41. Nd2 {[%clk 0:00:02]}  Nxf2 {[%clk 0:00:42]} 42. Nxe4 {[%clk 0:00:02]}  Nxe4 {[%clk 0:00:43]} 43. Be1 {[%clk 0:00:01]}  Kf7 {[%clk 0:00:38]} 44. Qb6 {[%clk 0:00:01]}  Nd6 {[%clk 0:00:35]} 45. Qe3 {[%clk 0:00:01]}  Nf5 {[%clk 0:00:34]} 46. Qe2 {[%clk 0:00:01]}  Kg6 {[%clk 0:00:34]} 47. Qc2 {[%clk 0:00:01]}  Qd4+ {[%clk 0:00:33]} 48. Kg2 {[%clk 0:00:01]}  e4 {[%clk 0:00:32]} 49. Bf2 {[%clk 0:00:02]}  e3 {[%clk 0:00:31]} 50. Be1 {[%clk 0:00:02]}  Qg4 {[%clk 0:00:30]} 51. Qd3 {[%clk 0:00:02]}  Kf7 {[%clk 0:00:28]} 52. Qd7+ {[%clk 0:00:02]}  Ne7 {[%clk 0:00:29]} 53. Qd3 {[%clk 0:00:02]}  Nf5 {[%clk 0:00:25]} 54. Qd7+ {[%clk 0:00:02]}  Kg6 {[%clk 0:00:26]} 55. Qe8+ {[%clk 0:00:03]}  Kg7 {[%clk 0:00:26]} 56. Qd7+ {[%clk 0:00:03]}  Kh6 {[%clk 0:00:26]} 0-1


[Site "https://www.chess.com"]

[Event "Titled Tuesday Blitz July 6 2021"]
[White "Ljukin, Sergei"]
[Black "Yang, Kaiqi"]
[WhiteFideId "14102200"]
[BlackFideId "8604398"]
[WhiteElo "2309"]
[BlackElo "2373"]
[Result "0-1"]
[Round "09"]
[TimeControl "180+1"]
[Date "2021.07.06"]
[WhiteClock "0:00:01"]
[BlackClock "0:00:10"]

1. e4 {[%clk 0:03:00]}  e6 {[%clk 0:02:58]} 2. d4 {[%clk 0:03:00]}  d5 {[%clk 0:02:59]} 3. Nc3 {[%clk 0:02:59]}  Nf6 {[%clk 0:02:56]} 4. Bg5 {[%clk 0:02:58]}  dxe4 {[%clk 0:02:55]} 5. Nxe4 {[%clk 0:02:58]}  Be7 {[%clk 0:02:56]} 6. Bxf6 {[%clk 0:02:58]}  gxf6 {[%clk 0:02:56]} 7. Nf3 {[%clk 0:02:58]}  f5 {[%clk 0:02:55]} 8. Nc3 {[%clk 0:02:58]}  a6 {[%clk 0:02:55]} 9. Bc4 {[%clk 0:02:57]}  b5 {[%clk 0:02:52]} 10. Bb3 {[%clk 0:02:57]}  c5 {[%clk 0:02:45]} 11. dxc5 {[%clk 0:02:53]}  Qxd1+ {[%clk 0:02:30]} 12. Rxd1 {[%clk 0:02:51]}  Nc6 {[%clk 0:02:20]} 13. O-O {[%clk 0:02:45]}  Bb7 {[%clk 0:02:11]} 14. Rfe1 {[%clk 0:02:40]}  Rg8 {[%clk 0:02:08]} 15. g3 {[%clk 0:02:36]}  Rd8 {[%clk 0:01:53]} 16. Rxd8+ {[%clk 0:02:26]}  Kxd8 {[%clk 0:01:47]} 17. Ne5 {[%clk 0:02:25]}  Nxe5 {[%clk 0:01:31]} 18. Rxe5 {[%clk 0:02:24]}  Bf6 {[%clk 0:01:25]} 19. Re3 {[%clk 0:02:22]}  Kc7 {[%clk 0:01:20]} 20. Rd3 {[%clk 0:01:55]}  h5 {[%clk 0:01:13]} 21. Nd1 {[%clk 0:01:47]}  Be4 {[%clk 0:01:09]} 22. Rd2 {[%clk 0:01:44]}  h4 {[%clk 0:01:05]} 23. a4 {[%clk 0:00:52]}  f4 {[%clk 0:00:54]} 24. axb5 {[%clk 0:00:45]}  axb5 {[%clk 0:00:55]} 25. Nc3 {[%clk 0:00:25]}  Bxc3 {[%clk 0:00:45]} 26. bxc3 {[%clk 0:00:25]}  fxg3 {[%clk 0:00:41]} 27. fxg3 {[%clk 0:00:23]}  hxg3 {[%clk 0:00:41]} 28. c4 {[%clk 0:00:22]}  b4 {[%clk 0:00:35]} 29. hxg3 {[%clk 0:00:20]}  Rxg3+ {[%clk 0:00:34]} 30. Kh2 {[%clk 0:00:18]}  Rg5 {[%clk 0:00:31]} 31. Ba4 {[%clk 0:00:08]}  Bc6 {[%clk 0:00:19]} 32. Bb3 {[%clk 0:00:07]}  Rxc5 {[%clk 0:00:19]} 33. Rf2 {[%clk 0:00:07]}  f5 {[%clk 0:00:16]} 34. Kg3 {[%clk 0:00:07]}  Re5 {[%clk 0:00:16]} 35. Kf4 {[%clk 0:00:07]}  Re4+ {[%clk 0:00:16]} 36. Kg5 {[%clk 0:00:07]}  Kd6 {[%clk 0:00:16]} 37. Kf6 {[%clk 0:00:07]}  Kc5 {[%clk 0:00:17]} 38. Rd2 {[%clk 0:00:02]}  f4 {[%clk 0:00:16]} 39. Rd8 {[%clk 0:00:01]}  f3 {[%clk 0:00:15]} 40. Kg5 {[%clk 0:00:01]}  Re1 {[%clk 0:00:11]} 41. Rf8 {[%clk 0:00:01]}  e5 {[%clk 0:00:12]} 42. Rf5 {[%clk 0:00:01]}  Re2 {[%clk 0:00:10]} 0-1


[Site "https://www.chess.com"]

[Event "Titled Tuesday Blitz July 6 2021"]
[White "Markidis, Konstantinos"]
[Black "Korchmar, Vasiliy"]
[WhiteFideId "4203500"]
[BlackFideId "24131750"]
[WhiteElo "2304"]
[BlackElo "2370"]
[Result "0-1"]
[Round "09"]
[TimeControl "180+1"]
[Date "2021.07.06"]
[WhiteClock "0:00:02"]
[BlackClock "0:01:26"]

1. e4 {[%clk 0:03:00]}  c5 {[%clk 0:02:59]} 2. Nf3 {[%clk 0:03:00]}  d6 {[%clk 0:02:59]} 3. Bb5+ {[%clk 0:03:00]}  Nd7 {[%clk 0:02:57]} 4. c3 {[%clk 0:03:00]}  Nf6 {[%clk 0:02:55]} 5. Bd3 {[%clk 0:03:00]}  g6 {[%clk 0:02:54]} 6. Bc2 {[%clk 0:03:00]}  Bg7 {[%clk 0:02:54]} 7. d4 {[%clk 0:03:01]}  cxd4 {[%clk 0:02:52]} 8. cxd4 {[%clk 0:03:00]}  d5 {[%clk 0:02:53]} 9. e5 {[%clk 0:02:58]}  Ne4 {[%clk 0:02:53]} 10. Nbd2 {[%clk 0:02:52]}  O-O {[%clk 0:02:50]} 11. O-O {[%clk 0:02:51]}  Nb6 {[%clk 0:02:49]} 12. Nxe4 {[%clk 0:02:51]}  dxe4 {[%clk 0:02:49]} 13. Bxe4 {[%clk 0:02:51]}  Be6 {[%clk 0:02:48]} 14. Bg5 {[%clk 0:02:25]}  Bd5 {[%clk 0:02:47]} 15. Bxd5 {[%clk 0:02:10]}  Nxd5 {[%clk 0:02:48]} 16. Qd2 {[%clk 0:02:10]}  Rc8 {[%clk 0:02:47]} 17. Rac1 {[%clk 0:02:09]}  Qd7 {[%clk 0:02:48]} 18. h3 {[%clk 0:02:07]}  e6 {[%clk 0:02:45]} 19. Bh6 {[%clk 0:02:02]}  Qa4 {[%clk 0:02:37]} 20. Bxg7 {[%clk 0:02:00]}  Kxg7 {[%clk 0:02:38]} 21. a3 {[%clk 0:01:53]}  h6 {[%clk 0:02:30]} 22. h4 {[%clk 0:01:40]}  Qb3 {[%clk 0:02:19]} 23. Rfe1 {[%clk 0:01:32]}  b5 {[%clk 0:02:11]} 24. Rxc8 {[%clk 0:00:54]}  Rxc8 {[%clk 0:02:12]} 25. Rc1 {[%clk 0:00:54]}  Rc4 {[%clk 0:02:12]} 26. Rxc4 {[%clk 0:00:52]}  bxc4 {[%clk 0:02:13]} 27. Kh2 {[%clk 0:00:25]}  a5 {[%clk 0:02:08]} 28. h5 {[%clk 0:00:20]}  gxh5 {[%clk 0:02:08]} 29. Ng1 {[%clk 0:00:10]}  c3 {[%clk 0:01:47]} 30. bxc3 {[%clk 0:00:09]}  Qxc3 {[%clk 0:01:48]} 31. Qd1 {[%clk 0:00:08]}  Qxa3 {[%clk 0:01:40]} 32. Qxh5 {[%clk 0:00:08]}  Qd3 {[%clk 0:01:41]} 33. Nf3 {[%clk 0:00:08]}  a4 {[%clk 0:01:39]} 34. Qg4+ {[%clk 0:00:07]}  Qg6 {[%clk 0:01:33]} 35. Qh4 {[%clk 0:00:07]}  a3 {[%clk 0:01:32]} 36. Qd8 {[%clk 0:00:07]}  a2 {[%clk 0:01:31]} 37. Qa8 {[%clk 0:00:07]}  Qb1 {[%clk 0:01:31]} 38. Nd2 {[%clk 0:00:04]}  Qb2 {[%clk 0:01:27]} 39. Nc4 {[%clk 0:00:02]}  a1=Q {[%clk 0:01:26]} 0-1


[Site "https://www.chess.com"]